bitfinex/quotes_BTCUSD_20250616
["timestamp","ask_amount","ask_price","bid_price","bid_amount"]
[1750089683289,0.17994315,107520.0,107510.0,0.22337555]
[1750089684136,0.16134223,107520.0,107510.0,0.22437555]
[1750089684344,0.1520419,107520.0,107510.0,0.22437555]
[1750089685236,0.16134223,107520.0,107510.0,0.22437555]
[1750089685449,0.16134232,107520.0,107510.0,0.22437555]
[1750089685667,0.16134224,107520.0,107510.0,0.22437555]
[1750089686312,0.69192483,107520.0,107510.0,0.00114226]
[1750089686538,1.28129491,107520.0,107510.0,0.00114226]
[1750089686982,0.67805424,107520.0,107510.0,0.20477403]
[1750089687193,0.68735474,107520.0,107510.0,0.20477403]
[1750089687395,0.69035474,107520.0,107510.0,0.20477403]
[1750089687604,0.69035474,107520.0,107510.0,0.21407505]
[1750089688325,0.69035474,107520.0,107510.0,0.22337599]
[1750089688552,0.48574166,107520.0,107510.0,0.23267684]
[1750089688768,0.46714157,107520.0,107510.0,0.81680623]
[1750089688987,0.45784176,107520.0,107510.0,0.81680623]
[1750089689208,0.46714166,107520.0,107510.0,0.23267684]
[1750089689431,0.3616,107520.0,107510.0,0.23267684]
[1750089689865,0.0216,107520.0,107510.0,0.23267684]
[1750089692411,0.0216,107520.0,107510.0,0.23723684]
[1750089692691,0.003,107520.0,107510.0,0.23723684]
[1750089693173,0.0209,107520.0,107510.0,0.23723684]
[1750089693778,0.03019981,107520.0,107510.0,0.23723684]
[1750089694162,0.0209,107520.0,107510.0,0.23723684]
[1750089694368,0.03019981,107520.0,107510.0,0.23723684]
[1750089694565,0.0209,107520.0,107510.0,0.23723684]
[1750089694798,0.0209,107520.0,107510.0,0.23267684]
[1750089695008,1.26783363,107520.0,107510.0,0.00014226]
[1750089695234,0.68370424,107520.0,107510.0,0.00014226]
[1750089698045,0.68370424,107520.0,107510.0,0.18617146]
[1750089698267,0.67895424,107520.0,107510.0,0.20477394]
[1750089698482,0.67895424,107520.0,107510.0,0.18617146]
[1750089698702,0.66510366,107520.0,107510.0,0.00014226]
[1750089704134,0.66510366,107520.0,107510.0,0.18617146]
[1750089704344,0.66510366,107520.0,107510.0,0.00014226]
[1750089704568,0.68727305,107520.0,107510.0,0.00014226]
[1750089705459,0.68727305,107520.0,107510.0,0.20933376]
[1750089705460,0.50581131,107520.0,107510.0,0.20933376]
[1750089705676,0.50581131,107520.0,107510.0,0.79365314]
[1750089705677,0.51653192,107520.0,107510.0,0.79365314]
[1750089705884,0.48504215,107520.0,107510.0,0.80295399]
[1750089706097,0.47574182,107520.0,107510.0,0.80295399]
[1750089706308,0.45784182,107520.0,107510.0,0.80295399]
[1750089706728,0.46714224,107520.0,107510.0,0.80295399]
[1750089706969,0.48524224,107520.0,107510.0,0.21863461]
[1750089707176,0.68055464,107520.0,107510.0,0.21863461]
[1750089707359,0.49454274,107520.0,107510.0,0.21863461]
[1750089707603,0.51676603,107520.0,107510.0,0.21863461]
[1750089707819,0.70277793,107520.0,107510.0,0.21863461]
[1750089708103,0.52606553,107520.0,107510.0,0.21863461]
[1750089708320,0.45734176,107520.0,107510.0,0.21863461]
[1750089708531,0.02159997,107520.0,107510.0,0.21863461]
[1750089708964,0.04029997,107520.0,107510.0,0.21863461]
[1750089709184,0.0309999,107520.0,107510.0,0.21863461]
[1750089709825,0.03099981,107520.0,107510.0,0.21863461]
[1750089710036,0.003,107520.0,107510.0,0.80282889]
[1750089710248,0.003,107520.0,107510.0,0.82102889]
[1750089711120,0.06513352,107530.0,107520.0,0.21391262]
[1750089711341,0.08373352,107530.0,107520.0,0.21391262]
[1750089711776,0.260429,107530.0,107520.0,0.1860119]
[1750089712031,0.260429,107530.0,107510.0,0.21407436]
[1750089712032,0.02650024,107520.0,107510.0,0.21407436]
[1750089712245,0.02650024,107520.0,107510.0,0.22337573]
[1750089712246,0.05340031,107520.0,107510.0,0.22337573]
[1750089712452,0.06270012,107520.0,107510.0,0.22893573]
[1750089712663,0.07200054,107520.0,107510.0,0.22793573]
[1750089712871,0.26731294,107520.0,107510.0,0.18617146]
[1750089713080,0.26731294,107520.0,107510.0,0.19547283]
[1750089713081,0.34495517,107520.0,107510.0,0.19547283]
[1750089713288,0.33110425,107520.0,107510.0,0.19547283]
[1750089713715,0.33110425,107520.0,107510.0,0.18617146]
[1750089713921,0.33110425,107520.0,107510.0,0.00944372]
[1750089714099,0.33110425,107520.0,107510.0,0.19547292]
[1750089714311,0.32180366,107520.0,107510.0,0.00014226]
[1750089714535,0.32180366,107520.0,107510.0,0.00114226]
[1750089714719,0.32180366,107520.0,107510.0,0.18717146]
[1750089715128,0.32180366,107520.0,107510.0,0.00114226]
[1750089717008,0.90599794,107520.0,107510.0,0.00114226]
[1750089717178,0.92821588,107520.0,107510.0,0.00114226]
[1750089718575,0.93021588,107520.0,107510.0,0.00014226]
[1750089718784,0.93121588,107520.0,107510.0,0.00014226]
[1750089720306,6.40696147,107520.0,107510.0,0.00014226]
[1750089721226,6.40496147,107520.0,107510.0,0.00014226]
[1750089721441,6.40396147,107520.0,107510.0,0.00014226]
[1750089721666,6.40796147,107520.0,107510.0,0.00014226]
[1750089721851,6.38618904,107520.0,107510.0,0.00114226]
[1750089722334,6.41393178,107520.0,107510.0,0.00114226]
[1750089722836,6.510081,107520.0,107510.0,0.00114226]
[1750089723169,6.41393178,107520.0,107510.0,0.00114226]
[1750089724020,5.8297375,107520.0,107510.0,0.00114226]
[1750089724235,6.41393178,107520.0,107510.0,0.00114226]
[1750089725395,6.41392406,107520.0,107510.0,0.00114226]
[1750089725955,6.99207588,107520.0,107510.0,0.00114226]
[1750089726177,6.90242087,107520.0,107510.0,0.00114226]
[1750089726307,6.31822659,107520.0,107510.0,0.00114226]
[1750089726505,6.90242087,107520.0,107510.0,0.00114226]
[1750089726949,7.48742179,107520.0,107510.0,0.00114226]
[1750089727531,7.4504946,107520.0,107510.0,0.00114226]
[1750089728126,7.6061346,107520.0,107510.0,0.00114226]
[1750089728767,7.59964039,107520.0,107510.0,0.00114226]
[1750089732119,7.62759339,107520.0,107510.0,0.00114226]
[1750089732563,7.63754844,107520.0,107510.0,0.00114226]
[1750089733229,8.36701161,107520.0,107510.0,0.00114226]
[1750089733444,7.82735796,107520.0,107510.0,0.00114226]
[1750089733675,8.41195556,107520.0,107510.0,0.00114226]
[1750089733908,7.76595079,107520.0,107510.0,0.00114226]
[1750089734145,7.72822996,107520.0,107510.0,0.00014226]
[1750089734364,7.66593383,107520.0,107510.0,0.00014226]
[1750089734580,7.03029215,107520.0,107510.0,0.00114226]
[1750089734799,7.03029215,107520.0,107510.0,0.00014226]
[1750089734800,6.8399822,107520.0,107510.0,0.00014226]
[1750089735059,7.5802198,107520.0,107510.0,0.00014226]
[1750089735278,7.01916305,107520.0,107510.0,0.00114226]
[1750089735501,7.5802198,107520.0,107510.0,0.00014226]
[1750089735720,7.43412065,107520.0,107510.0,0.00014226]
[1750089735932,7.59676065,107520.0,107510.0,0.00114226]
[1750089736421,7.10826065,107520.0,107510.0,0.00114226]
[1750089736638,7.11126065,107520.0,107510.0,0.00114226]
[1750089737054,7.10826065,107520.0,107510.0,0.00114226]
[1750089737473,7.10926065,107520.0,107510.0,0.00114226]
[1750089738165,0.18611507,107470.0,107450.0,0.018612]
[1750089738383,0.95251383,107460.0,107450.0,0.24170013]
[1750089738600,0.95251383,107460.0,107450.0,0.04630782]
[1750089738601,0.64096857,107460.0,107450.0,0.04630782]
[1750089739256,0.46415859,107460.0,107450.0,0.24674746]
[1750089739470,0.65027435,107460.0,107450.0,0.22449394]
[1750089739700,0.64096891,107460.0,107450.0,0.21518746]
[1750089739939,0.64096891,107460.0,107450.0,0.21018746]
[1750089740153,0.6316633,107460.0,107450.0,0.26505385]
[1750089740376,1.2162609,107460.0,107450.0,0.26505385]
[1750089740590,1.2162609,107460.0,107450.0,0.01874782]
[1750089740805,1.20695512,107460.0,107450.0,0.25574755]
[1750089741015,1.20695512,107460.0,107450.0,0.24574755]
[1750089741016,0.62235752,107460.0,107450.0,0.24574755]
[1750089741228,0.62335752,107460.0,107450.0,0.25174755]
[1750089741715,0.64165752,107460.0,107450.0,0.05630782]
[1750089742366,0.64165752,107460.0,107450.0,0.25174755]
[1750089742589,0.65103184,107460.0,107450.0,0.26105411]
[1750089743074,0.65103184,107460.0,107450.0,0.05630782]
[1750089744256,1.23604969,107460.0,107450.0,0.05630782]
[1750089744471,0.65103184,107460.0,107450.0,0.05630782]
[1750089747924,0.64203762,107460.0,107450.0,0.26105394]
[1750089748386,0.64203762,107460.0,107450.0,0.01008782]
[1750089748387,1.36735394,107460.0,107450.0,0.01008782]
[1750089748394,6.42201394,107460.0,107450.0,0.01008782]
[1750089748641,6.47179281,107460.0,107450.0,0.01008782]
[1750089748858,6.47826673,107460.0,107450.0,0.01008782]
[1750089749071,6.51515719,107460.0,107450.0,0.01008782]
[1750089749290,6.51515719,107460.0,107450.0,0.00608782]
[1750089749789,6.51715719,107460.0,107450.0,0.00608782]
[1750089750022,6.67283719,107460.0,107450.0,0.00608782]
[1750089750255,6.51615719,107460.0,107450.0,8.782e-05]
[1750089750478,6.42769957,107460.0,107450.0,8.782e-05]
[1750089750693,6.39180911,107460.0,107450.0,0.00108782]
[1750089750906,6.54748911,107460.0,107450.0,0.00108782]
[1750089752441,6.54752911,107460.0,107450.0,0.00108782]
[1750089752665,6.54752576,107460.0,107450.0,0.00108782]
[1750089752869,6.58831373,107460.0,107450.0,0.00108782]
[1750089753347,6.43259373,107460.0,107450.0,0.00108782]
[1750089753565,6.54752576,107460.0,107450.0,0.00108782]
[1750089754243,7.03792576,107460.0,107450.0,0.00108782]
[1750089754931,7.03792333,107460.0,107450.0,0.00108782]
[1750089755985,6.88220333,107460.0,107450.0,0.00108782]
[1750089756194,7.03792333,107460.0,107450.0,0.00108782]
[1750089756439,6.88220333,107460.0,107450.0,0.00108782]
[1750089756724,7.03792333,107460.0,107450.0,0.00108782]
[1750089756976,7.07481379,107460.0,107450.0,0.00108782]
[1750089757435,7.17096301,107460.0,107450.0,0.00108782]
[1750089757698,7.07481379,107460.0,107450.0,0.00108782]
[1750089758195,7.07481333,107460.0,107450.0,0.00108782]
[1750089758690,7.10278133,107460.0,107450.0,0.00108782]
[1750089759205,7.10278142,107460.0,107450.0,0.00108782]
[1750089760829,7.07511358,107460.0,107450.0,0.00108782]
[1750089761086,7.13050436,107460.0,107450.0,0.00108782]
[1750089762878,7.71632443,107460.0,107450.0,0.00108782]
[1750089763755,7.71632365,107460.0,107450.0,0.00108782]
[1750089764207,7.66093287,107460.0,107450.0,0.00108782]
[1750089764668,7.71632365,107460.0,107450.0,0.00108782]
[1750089765584,7.81247287,107460.0,107450.0,0.00108782]
[1750089765797,7.77558241,107460.0,107450.0,0.00108782]
[1750089766692,7.67995319,107460.0,107450.0,0.00108782]
[1750089767384,8.26537215,107460.0,107450.0,0.00108782]
[1750089767862,0.58548041,107450.0,107440.0,0.002]
[1750089768082,7.18430596,107450.0,107440.0,0.00204733]
[1750089769177,6.598887,107450.0,107440.0,0.00204733]
[1750089769396,6.599887,107450.0,107440.0,0.00204733]
[1750089769802,6.56301186,107450.0,107440.0,0.00204733]
[1750089770278,6.56401186,107450.0,107440.0,0.00404733]
[1750089770494,7.14943082,107450.0,107440.0,0.00404733]
[1750089770944,6.56401186,107450.0,107440.0,0.00404733]
[1750089771183,6.60091252,107450.0,107440.0,0.00404733]
[1750089771650,6.55347542,107450.0,107440.0,0.00404733]
[1750089771864,6.49816271,107450.0,107440.0,0.00404733]
[1750089772301,6.49817802,107450.0,107440.0,0.00404733]
[1750089772544,6.48660343,107450.0,107440.0,0.00404733]
[1750089774493,6.51457343,107450.0,107440.0,0.00404733]
[1750089776439,6.51458639,107450.0,107440.0,0.00404733]
[1750089777630,6.35834639,107450.0,107440.0,0.00404733]
[1750089777878,6.51439854,107450.0,107440.0,0.00404733]
[1750089778868,6.5919522,107450.0,107440.0,0.00404733]
[1750089779117,6.38051673,107450.0,107440.0,0.00404733]
[1750089779349,6.37400932,107450.0,107440.0,0.00404733]
[1750089779601,6.52992932,107450.0,107440.0,0.00404733]
[1750089779815,6.58723851,107450.0,107440.0,0.00404733]
[1750089780093,0.55041914,107450.0,107440.0,0.00404733]
[1750089780314,0.37153137,107450.0,107440.0,0.29477933]
[1750089780526,0.14817273,107450.0,107440.0,0.30408624]
[1750089780746,0.002,107450.0,107440.0,0.30408624]
[1750089781174,0.29770076,107460.0,107450.0,0.24915225]
[1750089781410,0.29770076,107460.0,107450.0,0.25845829]
[1750089781411,0.10554694,107460.0,107450.0,0.25845829]
[1750089781642,0.45485238,107460.0,107450.0,0.25845829]
[1750089781870,0.4956217,107460.0,107450.0,0.25845829]
[1750089782101,0.1556217,107460.0,107450.0,0.25845829]
[1750089782319,0.1556217,107460.0,107450.0,0.24458629]
[1750089782320,1.23569305,107460.0,107450.0,0.24458629]
[1750089782575,1.25785124,107460.0,107450.0,0.26319907]
[1750089782798,1.04957729,107460.0,107450.0,0.27250468]
[1750089783458,1.0309659,107460.0,107450.0,0.27250468]
[1750089783687,1.04027125,107460.0,107450.0,0.27250468]
[1750089783903,0.46415781,107460.0,107450.0,0.27250468]
[1750089784332,0.45485202,107460.0,107450.0,0.27250468]
[1750089784556,0.45485202,107460.0,107450.0,0.27350468]
[1750089784769,0.44654676,107460.0,107450.0,0.27550468]
[1750089784982,0.45585194,107460.0,107450.0,0.27550468]
[1750089785423,0.46515729,107460.0,107450.0,0.27550468]
[1750089785639,0.43724176,107460.0,107450.0,0.27550468]
[1750089786059,0.341,107460.0,107450.0,0.86092364]
[1750089786277,0.341,107460.0,107450.0,0.27550468]
[1750089787183,0.350305,107460.0,107450.0,0.27550468]
[1750089787393,0.341,107460.0,107450.0,0.27550468]
[1750089788088,0.341,107460.0,107450.0,0.43146468]
[1750089788982,0.001,107460.0,107450.0,1.01688364]
[1750089790049,0.001,107460.0,107450.0,1.01588364]
[1750089790489,0.3772182,107470.0,107460.0,0.24773208]
[1750089790711,0.56331664,107470.0,107460.0,0.24773208]
[1750089790926,0.38652312,107470.0,107460.0,0.44513225]
[1750089791137,0.38652312,107470.0,107460.0,0.45443743]
[1750089791786,0.38652312,107470.0,107460.0,0.25703743]
[1750089792006,0.57362156,107470.0,107460.0,0.45635743]
[1750089792229,0.38752312,107470.0,107460.0,0.45635743]
[1750089792444,0.38752312,107470.0,107460.0,0.46109743]
[1750089792664,0.57362156,107470.0,107460.0,0.26377743]
[1750089792924,0.57362156,107470.0,107460.0,0.43549225]
[1750089793143,0.39691799,107470.0,107460.0,0.45410269]
[1750089793362,0.58301643,107470.0,107460.0,0.45410269]
[1750089793571,0.58301643,107470.0,107460.0,0.23917225]
[1750089793815,0.57371212,107470.0,107460.0,0.43645225]
[1750089794280,0.37830876,107470.0,107460.0,0.45506269]
[1750089794508,0.37830876,107470.0,107460.0,0.47136269]
[1750089794803,0.36891389,107470.0,107460.0,0.47136269]
[1750089795100,0.35960906,107470.0,107460.0,0.47136269]
[1750089795357,0.3689138,107470.0,107460.0,0.47136269]
[1750089795654,0.56431707,107470.0,107460.0,0.47136269]
[1750089795871,0.57362199,107470.0,107460.0,0.45506269]
[1750089796105,0.5830809,107470.0,107460.0,0.47136269]
[1750089796349,0.5737765,107470.0,107460.0,0.25073225]
[1750089796586,1.25432782,107470.0,107460.0,0.00774]
[1750089796790,1.27232782,107470.0,107460.0,0.0493]
[1750089798094,1.27232782,107470.0,107460.0,0.23067576]
[1750089798324,1.27232782,107470.0,107460.0,0.23998154]
[1750089798539,1.25432782,107470.0,107460.0,0.23998154]
[1750089798865,1.06822903,107470.0,107460.0,0.24928706]
[1750089799078,1.06822903,107470.0,107460.0,0.25859232]
[1750089799079,0.45585064,107470.0,107460.0,0.25859232]
[1750089799285,0.46515547,107470.0,107460.0,0.25859232]
[1750089799502,0.4651553,107470.0,107460.0,0.2678975]
[1750089799710,0.35960888,107470.0,107460.0,0.3016975]
[1750089799996,0.35882464,107470.0,107460.0,0.3016975]
[1750089800198,0.36812938,107470.0,107460.0,0.2853975]
[1750089800585,0.35882464,107470.0,107460.0,0.2853975]
[1750089801019,0.3681293,107470.0,107460.0,0.2853975]
[1750089801239,0.35882464,107470.0,107460.0,0.2853975]
[1750089801463,0.36812938,107470.0,107460.0,0.2853975]
[1750089801691,0.36812938,107470.0,107460.0,0.4411175]
[1750089802174,0.36812962,107470.0,107460.0,0.4236175]
[1750089802403,0.37743436,107470.0,107460.0,0.4283575]
[1750089802632,1.28100327,107470.0,107460.0,0.19385576]
[1750089802854,1.28100327,107470.0,107460.0,0.40974689]
[1750089802855,1.27169896,107470.0,107460.0,0.40974689]
[1750089803327,1.26239439,107470.0,107460.0,0.40974689]
[1750089803553,1.26239439,107470.0,107460.0,0.21703233]
[1750089803772,1.27969439,107470.0,107460.0,0.41905233]
[1750089803986,1.27969439,107470.0,107460.0,0.42835768]
[1750089804202,1.26239439,107470.0,107460.0,0.43766294]
[1750089805110,1.04048594,107470.0,107460.0,0.43766251]
[1750089805334,0.47367594,107470.0,107460.0,0.43766251]
[1750089805562,0.6690793,107470.0,107460.0,0.43766251]
[1750089805825,0.6862793,107470.0,107460.0,0.40974672]
[1750089806269,1.26239404,107470.0,107460.0,0.40974672]
[1750089806730,0.67697508,107470.0,107460.0,0.41905207]
[1750089806958,1.26239404,107470.0,107460.0,0.41905207]
[1750089807846,1.06699068,107470.0,107460.0,0.41905207]
[1750089808072,0.47367594,107470.0,107460.0,0.42835725]
[1750089808348,0.44576192,107470.0,107460.0,0.42835725]
[1750089808562,0.35882421,107470.0,107460.0,0.44555725]
[1750089808810,0.3495199,107470.0,107460.0,0.44555725]
[1750089809040,0.3588243,107470.0,107460.0,0.44555725]
[1750089809264,0.35882421,107470.0,107460.0,0.24827725]
[1750089809494,0.3495199,107470.0,107460.0,0.44551725]
[1750089809740,0.35882412,107470.0,107460.0,0.44551725]
[1750089809967,0.34021576,107470.0,107460.0,1.04733621]
[1750089810398,0.34021576,107470.0,107460.0,0.46191725]
[1750089810609,0.3495199,107470.0,107460.0,0.26467725]
[1750089810853,0.3495199,107470.0,107460.0,0.46191725]
[1750089811277,0.35882421,107470.0,107460.0,0.26467725]
[1750089811495,0.35882421,107470.0,107460.0,0.46191725]
[1750089811932,0.3495199,107470.0,107460.0,0.46191725]
[1750089812412,0.35882421,107470.0,107460.0,0.44551725]
[1750089812627,0.3495199,107470.0,107460.0,0.44551725]
[1750089813063,0.34021576,107470.0,107460.0,0.44551725]
[1750089813288,0.34951998,107470.0,107460.0,0.44551725]
[1750089813567,0.3495199,107470.0,107460.0,0.44551725]
[1750089813996,0.34021576,107470.0,107460.0,0.44551725]
[1750089815254,0.41541433,107470.0,107460.0,0.27263725]
[1750089815473,1.25496517,107470.0,107460.0,0.23998154]
[1750089815704,1.35120693,107470.0,107460.0,0.25859268]
[1750089815929,1.35120693,107470.0,107460.0,0.41615285]
[1750089816158,1.35120693,107470.0,107460.0,0.40684724]
[1750089816376,1.35120693,107470.0,107460.0,0.41615285]
[1750089816595,1.35120693,107470.0,107460.0,0.42545837]
[1750089816782,1.34190271,107470.0,107460.0,0.41615285]
[1750089817776,1.34190271,107470.0,107460.0,0.42545837]
[1750089817979,1.34190271,107470.0,107460.0,0.42545829]
[1750089818641,1.34190271,107470.0,107460.0,0.40684724]
[1750089819741,1.34190271,107470.0,107460.0,0.21703276]
[1750089819932,1.08519053,107470.0,107460.0,0.43021802]
[1750089820408,1.27128941,107470.0,107460.0,0.25412724]
[1750089820627,1.27128941,107470.0,107460.0,0.25859285]
[1750089821531,1.27128941,107470.0,107460.0,0.27720372]
[1750089821965,1.26198467,107470.0,107460.0,0.27720381]
[1750089822181,1.26198467,107470.0,107460.0,0.27720294]
[1750089822399,1.26198467,107470.0,107460.0,0.26789768]
[1750089822619,1.26198467,107470.0,107460.0,0.23067576]
[1750089822845,1.25267984,107470.0,107460.0,0.2399812]
[1750089823065,1.25267984,107470.0,107460.0,0.1984212]
[1750089823282,1.25267984,107470.0,107460.0,0.3981012]
[1750089824182,1.25267984,107470.0,107460.0,0.40740707]
[1750089824855,1.25267984,107470.0,107460.0,0.41671259]
[1750089825130,1.25267984,107470.0,107460.0,0.42601803]
[1750089826473,1.25267984,107470.0,107460.0,0.41671259]
[1750089826680,1.25267984,107470.0,107460.0,0.40740707]
[1750089827312,1.24337492,107470.0,107460.0,0.40740707]
[1750089827733,1.24337492,107470.0,107460.0,0.39810146]
[1750089828580,1.27133392,107470.0,107460.0,0.39810146]
[1750089828799,1.27133392,107470.0,107460.0,0.40740707]
[1750089829680,1.27133392,107470.0,107460.0,0.39810146]
[1750089830335,0.68591496,107470.0,107460.0,0.39810146]
[1750089830536,1.27133392,107470.0,107460.0,0.39810146]
[1750089831466,1.27133392,107470.0,107460.0,0.19842146]
[1750089831679,1.27133392,107470.0,107460.0,0.20212]
[1750089831815,1.27133392,107470.0,107460.0,0.39754154]
[1750089833260,1.27133392,107470.0,107460.0,0.40684724]
[1750089834575,1.27133392,107470.0,107460.0,0.41615285]
[1750089835906,1.27133392,107470.0,107460.0,0.42545829]
[1750089836319,1.27133392,107470.0,107460.0,0.41615285]
[1750089836523,1.27133392,107470.0,107460.0,0.40684724]
[1750089836838,1.27133392,107470.0,107460.0,0.41615285]
[1750089837054,1.27133392,107470.0,107460.0,0.39754154]
[1750089837685,1.27133392,107470.0,107460.0,0.39730154]
[1750089838307,1.27133392,107470.0,107460.0,0.40660724]
[1750089838661,1.27133392,107470.0,107460.0,0.41591285]
[1750089838863,1.27133392,107470.0,107460.0,0.42521837]
[1750089839190,0.49981652,107470.0,107460.0,0.41591259]
[1750089839381,0.36817476,107470.0,107460.0,1.04338217]
[1750089839603,0.37747898,107470.0,107460.0,0.45796321]
[1750089839826,0.38678338,107470.0,107460.0,0.45804321]
[1750089840035,0.37747898,107470.0,107460.0,0.45804321]
[1750089840288,0.36817476,107470.0,107460.0,0.47444321]
[1750089840512,0.001,107470.0,107460.0,1.05986217]
[1750089842057,0.001,107470.0,107460.0,0.47444321]
[1750089842274,0.001,107470.0,107460.0,1.05986217]
[1750089843212,0.001,107470.0,107460.0,1.05486217]
[1750089843775,0.09480711,107470.0,107460.0,0.26861769]
[1750089843978,0.07619857,107470.0,107460.0,1.01035665]
[1750089844242,0.08550279,107470.0,107460.0,1.04525665]
[1750089844453,0.09480719,107470.0,107460.0,0.41563251]
[1750089844680,0.09480719,107470.0,107460.0,0.22617769]
[1750089844857,0.09480719,107470.0,107460.0,0.42493769]
[1750089844858,0.09480727,107470.0,107460.0,0.42493769]
[1750089845258,0.09380719,107470.0,107460.0,0.42493769]
[1750089845530,0.08550279,107470.0,107460.0,0.43089769]
[1750089845725,0.09480719,107470.0,107460.0,0.43089769]
[1750089846107,0.08550279,107470.0,107460.0,0.43089769]
[1750089846314,0.09480719,107470.0,107460.0,0.43089769]
[1750089846606,0.08550279,107470.0,107460.0,0.43089769]
[1750089846817,0.07619857,107470.0,107460.0,0.43089769]
[1750089847026,0.08550271,107470.0,107460.0,0.44909769]
[1750089847236,0.001,107470.0,107460.0,1.03451665]
[1750089847881,0.001,107470.0,107460.0,1.05091665]
[1750089848346,0.001,107470.0,107460.0,0.83579665]
[1750089848531,0.001,107470.0,107460.0,0.43077769]
[1750089848921,0.001,107470.0,107460.0,0.43073769]
[1750089849451,0.001,107470.0,107460.0,1.01615665]
[1750089849667,0.001,107470.0,107460.0,1.03485665]
[1750089850095,0.001,107470.0,107460.0,0.44943769]
[1750089850336,0.001,107470.0,107460.0,0.25087769]
[1750089850541,0.001,107470.0,107460.0,0.43069769]
[1750089852023,0.011,107470.0,107460.0,0.43069769]
[1750089852713,0.011,107470.0,107460.0,1.04981665]
[1750089852920,0.011,107470.0,107460.0,1.73147737]
[1750089853953,0.011,107470.0,107460.0,0.56063945]
[1750089854185,0.011,107470.0,107460.0,1.14605841]
[1750089855580,0.011,107470.0,107460.0,1.73147737]
[1750089856016,0.011,107470.0,107460.0,1.93147737]
[1750089856409,0.011,107470.0,107460.0,1.73295737]
[1750089857210,0.01,107470.0,107460.0,1.16153841]
[1750089857423,0.01,107470.0,107460.0,0.94513841]
[1750089857738,0.011,107470.0,107460.0,1.43409841]
[1750089859330,0.011,107470.0,107460.0,1.23665841]
[1750089859572,0.011,107470.0,107460.0,1.43409841]
[1750089861867,0.011,107470.0,107460.0,2.21951737]
[1750089865174,0.011,107470.0,107460.0,2.28405822]
[1750089866856,0.011,107470.0,107460.0,2.28205822]
[1750089867090,0.01,107470.0,107460.0,2.27705822]
[1750089867310,0.01,107470.0,107460.0,2.28205822]
[1750089867539,0.011,107470.0,107460.0,2.28605822]
[1750089869401,0.011,107470.0,107460.0,2.28633822]
[1750089869552,0.011,107470.0,107460.0,2.46633822]
[1750089869774,0.011,107470.0,107460.0,2.46621822]
[1750089871477,0.01016838,107470.0,107460.0,2.46621822]
[1750089871938,0.00993786,107470.0,107460.0,2.46621822]
[1750089872452,0.00993786,107470.0,107460.0,2.85621822]
[1750089872705,0.00993786,107470.0,107460.0,2.87621822]
[1750089875129,0.00196676,107470.0,107460.0,2.87621822]
[1750089879188,0.00196676,107470.0,107460.0,2.89621822]
[1750089881857,0.00196676,107470.0,107460.0,3.48163718]
[1750089882450,0.07519857,107490.0,107480.0,0.68399226]
[1750089882454,0.07519857,107490.0,107480.0,1.07293311]
[1750089882675,0.07519857,107490.0,107480.0,2.54573279]
[1750089883540,0.07519857,107490.0,107480.0,2.56263676]
[1750089884385,0.07519857,107490.0,107480.0,2.56463676]
[1750089885068,0.01810463,107520.0,107510.0,0.23393253]
[1750089885308,0.09259857,107530.0,107520.0,0.21391262]
[1750089885536,0.09259857,107530.0,107520.0,0.57819438]
[1750089885754,0.09744857,107530.0,107520.0,1.06737158]
[1750089885969,0.09744857,107530.0,107520.0,1.26469158]
[1750089886623,0.09844857,107530.0,107520.0,1.26473891]
[1750089886831,0.09844857,107530.0,107520.0,0.48199995]
[1750089887032,0.09844857,107530.0,107520.0,1.26473891]
[1750089887249,0.10844857,107530.0,107520.0,1.26473891]
[1750089887453,0.11144857,107530.0,107520.0,1.26473891]
[1750089888104,0.12994857,107530.0,107520.0,1.26473891]
[1750089888316,0.12994857,107530.0,107520.0,0.79937891]
[1750089888536,0.73396603,107530.0,107520.0,0.25555995]
[1750089888810,0.73396603,107530.0,107520.0,0.21395995]
[1750089888811,0.74326558,107530.0,107520.0,0.21395995]
[1750089889025,1.07396603,107530.0,107520.0,0.41127995]
[1750089889244,1.09256531,107530.0,107520.0,0.41128013]
[1750089889482,1.08326558,107530.0,107520.0,0.42058011]
[1750089889697,1.27855991,107530.0,107520.0,0.40197997]
[1750089891206,1.27855991,107530.0,107520.0,0.40193421]
[1750089891426,1.27855991,107530.0,107520.0,0.20461421]
[1750089891636,1.27855991,107530.0,107520.0,0.41119437]
[1750089894015,1.27855991,107530.0,107520.0,0.25551437]
[1750089894225,1.27855991,107530.0,107520.0,0.41119437]
[1750089894427,1.20336134,107530.0,107520.0,0.42049444]
[1750089894629,1.00806701,107530.0,107520.0,0.42979442]
[1750089895276,1.01736665,107530.0,107520.0,0.42979442]
[1750089896419,0.39475,107530.0,107520.0,0.42979442]
[1750089896633,0.0499,107530.0,107520.0,1.01521338]
[1750089897069,0.0499,107530.0,107520.0,0.42979442]
[1750089897291,0.0499,107530.0,107520.0,1.01973338]
[1750089897745,0.05919903,107530.0,107520.0,0.42979442]
[1750089897972,0.07334798,107530.0,107520.0,0.42979442]
[1750089898185,0.67736544,107530.0,107520.0,0.42979442]
[1750089898803,0.67736535,107530.0,107520.0,0.42979442]
[1750089899198,0.6866649,107530.0,107520.0,0.23691397]
[1750089899415,0.6866649,107530.0,107520.0,0.41119419]
[1750089899964,0.68666559,107530.0,107520.0,0.41119419]
[1750089901371,0.87266019,107530.0,107520.0,0.41119419]
[1750089901590,0.07334815,107530.0,107520.0,0.41119419]
[1750089901827,0.09194691,107530.0,107520.0,0.41119419]
[1750089902059,0.10124637,107530.0,107520.0,0.41119419]
[1750089902288,0.87266002,107530.0,107520.0,0.24621421]
[1750089902501,0.87266072,107530.0,107520.0,0.41119428]
[1750089902946,0.8633616,107530.0,107520.0,0.41119428]
[1750089903412,0.08264831,107530.0,107520.0,0.42049426]
[1750089903642,0.66806727,107530.0,107520.0,0.42049426]
[1750089904548,0.66806718,107530.0,107520.0,0.42049426]
[1750089904996,0.06404903,107530.0,107520.0,0.42049426]
[1750089905247,0.0499,107530.0,107520.0,1.00591322]
[1750089907702,0.0325,107530.0,107520.0,1.00591322]
[1750089907957,0.014,107530.0,107520.0,1.59133218]
[1750089908170,0.014,107530.0,107520.0,1.68757394]
[1750089908386,0.014,107530.0,107520.0,1.70567394]
[1750089908606,0.014,107530.0,107520.0,1.12025498]
[1750089910196,0.014,107530.0,107520.0,1.10215498]
[1750089911602,0.014,107530.0,107520.0,1.13207578]
[1750089912092,0.014,107530.0,107520.0,1.15027578]
[1750089913009,0.014,107530.0,107520.0,1.13207578]
[1750089916222,0.014,107530.0,107520.0,1.13195578]
[1750089916446,0.0327,107530.0,107520.0,1.13195578]
[1750089917799,0.014,107530.0,107520.0,1.13195578]
[1750089919147,0.014,107530.0,107520.0,1.95287474]
[1750089920564,0.014,107530.0,107520.0,2.21741559]
[1750089920809,0.014,107530.0,107520.0,2.02025559]
[1750089921057,0.014,107530.0,107520.0,2.21737559]
[1750089921527,0.014,107530.0,107520.0,2.36025559]
[1750089921737,0.01,107530.0,107520.0,2.41025559]